bitfinex/quotes_SOLUSD_20241208
["timestamp","ask_amount","ask_price","bid_price","bid_amount"]
[1733651250028,33.0446351,234.8,234.79,7.5205]
[1733651250503,33.0446351,234.8,234.69,2.9967]
[1733651250705,13.0446351,234.76,234.69,2.9967]
[1733651250906,13.0446351,234.74,234.69,2.9967]
[1733651251435,13.0446351,234.77,234.7,13.0446351]
[1733651251612,20.0,234.74,234.69,16.0413351]
[1733651251933,20.0,234.74,234.69,2.9967]
[1733651252140,20.0,234.74,234.69,16.0413351]
[1733651252348,20.0,234.74,234.69,2.9967]
[1733651252640,13.0446351,234.77,234.69,16.0413351]
[1733651252829,20.0,234.75,234.69,16.0413351]
[1733651253009,20.0,234.74,234.69,2.9967]
[1733651253210,20.0,234.74,234.69,16.0413351]
[1733651253433,33.0446351,234.74,234.69,2.9967]
[1733651254230,13.0446351,234.76,234.69,2.9967]
[1733651254425,33.0446351,234.74,234.69,2.9967]
[1733651262433,20.0,234.74,234.69,16.0413351]
[1733651262750,13.0446351,234.76,234.69,16.0413351]
[1733651264327,13.0446351,234.75,234.69,2.9967]
[1733651264651,31.9393,234.82,234.69,39.8967]
[1733651264652,13.0446351,234.74,234.69,39.8967]
[1733651264823,13.0446351,234.75,234.69,52.9413351]
[1733651266658,8.36788283,234.75,234.69,48.26458283]
[1733651267752,20.0,234.79,234.69,48.26458283]
[1733651267934,8.36788283,234.75,234.69,48.26458283]
[1733651268560,8.36788283,234.74,234.69,39.8967]
[1733651271134,10.6476,234.8,234.69,39.8967]
[1733651271447,8.36788283,234.74,234.69,39.8967]
[1733651272255,10.6476,234.8,234.73,37.3905453]
[1733651272461,8.36788283,234.77,234.73,37.3905453]
[1733651272669,8.36788283,234.76,234.73,37.3905453]
[1733651273163,8.36788283,234.74,234.73,0.4905453]
[1733651282239,20.0,234.75,234.73,0.4905453]
[1733651282775,8.36788283,234.74,234.73,0.4905453]
[1733651282954,8.36788283,234.75,234.73,0.4905453]
[1733651283138,8.36788283,234.74,234.73,0.4905453]
[1733651284163,8.36788283,234.75,234.73,0.4905453]
[1733651284337,20.0,234.76,234.73,0.4905453]
[1733651284542,28.36788283,234.76,234.73,0.4905453]
[1733651284939,8.36788283,234.76,234.73,0.4905453]
[1733651285971,10.6478,234.79,234.73,0.4905453]
[1733651285972,8.36788283,234.75,234.73,0.4905453]
[1733651286471,10.6478,234.79,234.73,0.4905453]
[1733651286472,8.36788283,234.74,234.73,0.4905453]
[1733651287954,10.6494,234.76,234.73,0.4905453]
[1733651288159,28.36788283,234.74,234.73,0.4905453]
[1733651290987,20.0,234.74,234.73,0.4905453]
[1733651291281,28.36788283,234.74,234.73,0.4905453]
[1733651300160,28.36788283,234.74,234.73,4.53e-05]
[1733651300377,28.36788283,234.74,234.69,2.9967]
[1733651300378,13.02100465,234.73,234.69,2.9967]
[1733651300592,28.36788283,234.7,234.69,2.9967]
[1733651301692,28.36788283,234.7,234.68,10.0]
[1733651301913,28.36788283,234.69,234.68,10.0]
[1733651303195,28.36788283,234.69,234.57,109.81666667]
[1733651303196,5.0,234.64,234.57,72.91666667]
[1733651303491,20.0,234.55,234.49,0.4905453]
[1733651303703,8.36788283,234.52,234.49,0.4905453]
[1733651303902,8.36788283,234.52,234.5,3.109]
[1733651304091,8.36788283,234.56,234.5,40.009]
[1733651304280,8.36788283,234.52,234.5,3.109]
[1733651304611,8.36788283,234.52,234.5,2.609]
[1733651304971,8.36788283,234.51,234.5,2.609]
[1733651305194,20.0,234.57,234.5,2.609]
[1733651305371,8.36788283,234.53,234.5,2.609]
[1733651305873,20.0,234.56,234.49,0.4905453]
[1733651306611,20.0,234.56,234.35,5.0]
[1733651306612,20.0,234.56,234.42,0.1591506]
[1733651306613,20.0,234.47,234.42,0.1591506]
[1733651306902,28.36788283,234.47,234.42,37.0591506]
[1733651307274,20.0,234.52,234.42,0.1591506]
[1733651307480,8.36788283,234.45,234.42,0.1591506]
[1733651307677,8.36788283,234.46,234.42,0.1591506]
[1733651307879,8.36788283,234.47,234.42,0.1591506]
[1733651308101,8.36788283,234.45,234.42,0.1591506]
[1733651308289,8.36788283,234.44,234.42,0.1591506]
[1733651308606,20.0,234.48,234.42,0.1591506]
[1733651308802,8.36788283,234.45,234.42,0.1591506]
[1733651308970,5.3713662,234.55,234.42,8.52703343]
[1733651309170,8.36788283,234.5,234.42,0.1591506]
[1733651309377,8.36788283,234.46,234.42,0.1591506]
[1733651309598,8.36788283,234.49,234.42,8.52703343]
[1733651309898,8.36788283,234.5,234.42,8.52703343]
[1733651311217,28.36788283,234.49,234.42,8.52703343]
[1733651311401,8.36788283,234.48,234.42,0.1591506]
[1733651311716,8.36788283,234.47,234.42,0.1591506]
[1733651312013,8.36788283,234.48,234.42,0.1591506]
[1733651313090,10.6608,234.51,234.42,8.52703343]
[1733651313285,20.0,234.54,234.44,8.36788283]
[1733651313494,8.36788283,234.52,234.45,8.36788283]
[1733651313815,8.36788283,234.53,234.46,8.36788283]
[1733651314120,8.36788283,234.55,234.49,14.75308283]
[1733651314409,10.6577,234.57,234.49,51.65308283]
[1733651314711,8.36788283,234.55,234.49,43.2852]
[1733651316201,8.36788283,234.55,234.49,51.65308283]
[1733651316382,8.36788283,234.55,234.49,43.2852]
[1733651316789,8.36788283,234.55,234.49,51.65308283]
[1733651316983,8.36788283,234.56,234.49,51.65308283]
[1733651318008,8.36788283,234.57,234.5,11.44628283]
[1733651318518,8.36788283,234.56,234.5,3.0784]
[1733651319093,8.36788283,234.55,234.5,3.0784]
[1733651319817,10.6575,234.58,234.5,11.44628283]
[1733651320021,8.36788283,234.54,234.5,3.0784]
[1733651320232,8.36788283,234.53,234.5,3.0784]
[1733651320524,8.36788283,234.52,234.5,3.0784]
[1733651320823,8.36788283,234.54,234.5,3.0784]
[1733651321318,28.36788283,234.55,234.5,3.0784]
[1733651321617,10.6575,234.58,234.5,11.44628283]
[1733651321822,10.6575,234.58,234.52,8.36788283]
[1733651322030,8.36788283,234.59,234.52,8.36788283]
[1733651322195,10.6556,234.62,234.52,8.36788283]
[1733651322397,8.36788283,234.6,234.54,8.36788283]
[1733651322600,8.36788283,234.61,234.55,60.676884]
[1733651323304,8.36788283,234.6,234.55,60.676884]
[1733651323714,8.36788283,234.61,234.55,60.676884]
[1733651324422,10.6528,234.68,234.55,60.676884]
[1733651324927,8.36788283,234.6,234.55,60.676884]
[1733651325509,8.36788283,234.61,234.55,60.676884]
[1733651326033,8.36788283,234.6,234.55,60.676884]
[1733651326507,8.36788283,234.59,234.55,60.676884]
[1733651327036,8.36788283,234.57,234.5,39.9784]
[1733651327199,8.36788283,234.56,234.51,23.776884]
[1733651327531,8.36788283,234.55,234.5,39.9784]
[1733651328102,8.36788283,234.56,234.5,39.9784]
[1733651328305,8.36788283,234.52,234.5,3.0784]
[1733651328518,8.36788283,234.51,234.5,3.0784]
[1733651329129,8.36788283,234.52,234.5,3.0784]
[1733651330544,8.36788283,234.51,234.5,3.0784]
[1733651331234,8.36788283,234.51,234.44,46.3956]
[1733651331407,8.36788283,234.48,234.44,46.3956]
[1733651331612,8.36788283,234.49,234.44,46.3956]
[1733651332014,8.36788283,234.48,234.44,46.3956]
[1733651333037,8.36788283,234.47,234.44,46.3956]
[1733651333330,8.36788283,234.45,234.44,9.4956]
[1733651333536,8.36788283,234.47,234.44,9.4956]
[1733651333930,8.36788283,234.48,234.44,9.4956]
[1733651334240,10.6604,234.52,234.44,17.86348283]
[1733651334415,8.36788283,234.51,234.44,17.86348283]
[1733651334610,8.36788283,234.5,234.44,17.86348283]
[1733651335323,8.36788283,234.5,234.44,9.4956]
[1733651335530,8.36788283,234.49,234.44,9.4956]
[1733651336537,8.36788283,234.5,234.44,9.4956]
[1733651336736,8.36788283,234.49,234.44,9.4956]
[1733651336911,8.36788283,234.48,234.44,9.4956]
[1733651338236,8.36788283,234.5,234.44,17.86348283]
[1733651338540,8.36788283,234.49,234.44,9.4956]
[1733651338956,15.36671102,234.56,234.46,8.36788283]
[1733651339245,8.36788283,234.54,234.48,8.36788283]
[1733651339420,8.36788283,234.54,234.45,36.9]
[1733651339620,8.36788283,234.53,234.47,8.36788283]
[1733651340131,8.36788283,234.53,234.45,36.9]
[1733651340344,8.36788283,234.52,234.46,8.36788283]
[1733651340646,8.36788283,234.54,234.48,8.36788283]
[1733651341141,10.6585,234.56,234.48,8.36788283]
[1733651341325,28.36788283,234.56,234.5,8.36788283]
[1733651341516,8.36788283,234.56,234.5,8.36788283]
[1733651342618,8.36788283,234.55,234.49,36.9]
[1733651342820,8.36788283,234.52,234.49,36.9]
[1733651343020,21.3137,234.59,234.49,36.9]
[1733651343234,8.36788283,234.52,234.49,36.9]
[1733651344032,8.36788283,234.53,234.49,36.9]
[1733651344657,13.09933865,234.53,234.49,36.9]
[1733651345325,10.6583,234.56,234.49,36.9]
[1733651345524,13.09933865,234.53,234.49,36.9]
[1733651346457,13.09933865,234.54,234.49,36.9]
[1733651346947,13.09933865,234.51,234.45,36.9]
[1733651347248,13.09933865,234.49,234.45,36.9]
[1733651348844,13.09933865,234.48,234.45,36.9]
[1733651349047,13.09933865,234.47,234.45,36.9]
[1733651349346,13.09933865,234.47,234.44,9.4956]
[1733651349935,13.09933865,234.46,234.44,9.4956]
[1733651350327,13.09933865,234.45,234.44,9.4956]
[1733651350639,13.09933865,234.45,234.44,2.9249]
[1733651351535,13.09933865,234.45,234.42,0.1591506]
[1733651352344,13.09933865,234.43,234.42,0.1591506]
[1733651355454,13.09933865,234.43,234.42,5.06e-05]
[1733651355830,19.46422476,234.43,234.42,5.06e-05]
[1733651356859,19.46422476,234.43,234.33,3.2218]
[1733651356860,20.0,234.39,234.33,3.2218]
[1733651357466,13.09933865,234.36,234.33,3.2218]
[1733651358238,13.09933865,234.35,234.29,13.09933865]
[1733651358433,13.09933865,234.34,234.28,22.76603865]
[1733651358771,13.09933865,234.33,234.27,13.09933865]
[1733651359356,13.09933865,234.33,234.22,9.6667]
[1733651359357,13.09933865,234.33,234.26,13.09933865]
[1733651359660,13.09933865,234.32,234.26,13.09933865]
[1733651359828,13.09933865,234.31,234.24,13.09933865]
[1733651360031,13.09933865,234.3,234.22,46.5667]
[1733651360355,13.09933865,234.29,234.23,13.09933865]
[1733651360858,13.09933865,234.25,234.19,37.3836403]
[1733651361060,13.09933865,234.27,234.19,50.48297895]
[1733651361231,13.09933865,234.26,234.19,37.3836403]
[1733651361554,13.09933865,234.29,234.22,13.09933865]
[1733651362136,13.09933865,234.29,234.23,3.2218]
[1733651362662,13.09933865,234.3,234.23,22.76603865]
[1733651363230,13.09933865,234.36,234.23,9.6667]
[1733651363231,13.09933865,234.26,234.23,9.6667]
[1733651363441,13.09933865,234.27,234.23,9.6667]
[1733651364439,13.09933865,234.28,234.23,9.6667]
[1733651364640,8.40208789,234.29,234.23,46.5667]
[1733651365062,32.0047,234.34,234.23,46.5667]
[1733651365267,8.40208789,234.26,234.23,9.6667]
[1733651365476,8.40208789,234.25,234.23,9.6667]
[1733651365758,11.62316282,234.33,234.23,9.6667]
[1733651365963,8.40208789,234.28,234.23,9.6667]
[1733651366147,8.40208789,234.26,234.23,9.6667]
[1733651366349,8.40208789,234.25,234.23,9.6667]
[1733651367348,10.6711,234.28,234.23,9.6667]
[1733651367548,8.40208789,234.25,234.23,46.5667]
[1733651368066,10.6711,234.28,234.23,46.5667]
[1733651368067,8.40208789,234.24,234.23,46.5667]
[1733651368544,10.6711,234.28,234.23,40.1218]
[1733651368746,8.40208789,234.24,234.23,40.1218]
[1733651369966,8.40208789,234.24,234.23,3.2218]
[1733651370341,10.6732,234.23,234.19,37.3836403]
[1733651370542,8.40208789,234.2,234.19,37.3836403]
[1733651372287,8.40208789,234.2,234.19,0.4836403]
[1733651372475,10.6732,234.23,234.19,0.4836403]
[1733651372666,8.40208789,234.2,234.19,0.4836403]
[1733651372978,16.80417578,234.2,234.15,72.94070374]
[1733651373290,34.4077,234.23,233.95,37.3836403]
[1733651373291,5.0,234.13,233.95,37.3836403]
[1733651373495,8.40208789,234.01,233.95,0.4836403]
[1733651373787,20.0,234.09,233.96,9.6667]
[1733651374154,8.40208789,233.97,233.95,4.03e-05]
[1733651374358,8.40208789,233.97,233.9,0.02457117]
[1733651374359,10.6855,233.96,233.9,3.19357117]
[1733651374553,10.6833,234.01,233.9,2.59357117]
[1733651374867,10.6833,234.01,233.92,1.4]
[1733651375196,10.681,234.07,233.93,4.16830986]
[1733651375352,20.0,234.04,233.93,5.56830986]
[1733651375549,8.40208789,233.94,233.9,2.59357117]
[1733651375895,8.40208789,233.91,233.9,2.59357117]
[1733651376059,8.40208789,233.96,233.9,2.59357117]
[1733651376579,13.16952673,233.92,233.9,1.19357117]
[1733651377357,13.16952673,233.92,233.88,6.4904]
[1733651377660,13.16952673,233.9,233.88,6.4904]
[1733651378067,30.6834,234.01,233.9,1.4]
[1733651378389,13.16952673,233.95,233.9,1.4]
[1733651378577,13.16952673,233.96,233.9,1.4]
[1733651378883,13.16952673,233.95,233.9,1.4]
[1733651379376,13.16952673,233.97,233.9,1.4]
[1733651380077,13.16952673,233.98,233.91,13.16952673]
[1733651380259,10.6812,234.06,233.96,13.16952673]
[1733651380466,13.16952673,234.01,233.93,13.16952673]
[1733651380663,13.16952673,234.0,233.93,13.16952673]
[1733651380866,13.16952673,234.03,233.95,13.16952673]
[1733651381156,32.27602433,234.15,234.01,13.16952673]
[1733651381157,10.679,234.11,234.01,13.16952673]
[1733651381365,13.16952673,234.09,234.02,13.16952673]
[1733651381572,12.38979766,234.11,233.93,10.0]
[1733651381573,13.16952673,234.07,233.99,13.16952673]
[1733651381756,13.16952673,234.02,233.95,1.4]
[1733651382092,12.38979766,234.11,233.94,23.776884]
[1733651382257,12.38979766,234.11,234.0,1.4]
[1733651382453,13.16952673,234.09,234.02,13.16952673]
[1733651382670,13.16952673,234.09,234.01,14.56952673]
[1733651382884,13.16952673,234.09,234.01,13.16952673]
[1733651383191,13.16952673,234.13,234.06,13.16952673]
[1733651383675,10.6745,234.21,234.04,6.5499]
[1733651383676,13.16952673,234.14,234.07,13.16952673]
[1733651383879,13.16952673,234.14,234.04,6.5499]
[1733651383880,13.16952673,234.11,234.04,19.71942673]
[1733651384082,13.16952673,234.1,234.04,6.5499]
[1733651384463,13.16952673,234.11,234.04,19.71942673]
[1733651384681,13.16952673,234.14,234.08,13.16952673]
[1733651385053,13.16952673,234.14,234.06,1.4]
[1733651385255,13.16952673,234.14,234.08,13.16952673]
[1733651385676,13.16952673,234.16,234.09,13.16952673]
[1733651385884,13.16952673,234.2,234.13,13.16952673]
[1733651386084,10.6723,234.26,234.15,13.16952673]
[1733651386085,13.16952673,234.22,234.15,13.16952673]
[1733651386768,1.7453625,234.28,234.16,13.16952673]
[1733651387091,13.16952673,234.25,234.18,13.16952673]
[1733651387464,13.16952673,234.26,234.19,19.22812673]
[1733651387659,13.16952673,234.27,234.2,13.16952673]
[1733651387982,13.16952673,234.21,234.19,6.0586]
[1733651388286,13.16952673,234.2,234.15,1.4]
[1733651388595,13.16952673,234.19,234.12,19.22812673]
[1733651388962,13.16952673,234.19,234.15,1.4]
[1733651389281,13.16952673,234.19,234.12,19.22812673]
[1733651389481,13.16952673,234.18,234.12,19.22812673]
[1733651389786,13.16952673,234.19,234.12,20.62812673]
[1733651390202,13.16952673,234.2,234.13,13.16952673]
[1733651390493,13.16952673,234.21,234.14,14.56952673]
[1733651390790,13.16952673,234.2,234.15,1.4]
[1733651390991,13.16952673,234.17,234.15,1.4]
[1733651391162,13.16952673,234.21,234.15,14.56952673]
[1733651391366,13.16952673,234.22,234.16,13.16952673]
[1733651391567,13.16952673,234.21,234.15,1.4]
[1733651391787,13.16952673,234.2,234.15,1.4]
[1733651391989,13.16952673,234.18,234.15,1.4]
[1733651392297,13.16952673,234.18,234.12,7.4586]
[1733651392588,13.16952673,234.19,234.13,13.16952673]
[1733651392791,13.16952673,234.2,234.13,13.16952673]
[1733651393495,13.16952673,234.22,234.15,13.16952673]
[1733651394179,13.16952673,234.21,234.14,13.16952673]
[1733651394868,13.16952673,234.23,234.16,13.16952673]
[1733651395079,13.16952673,234.22,234.15,13.16952673]
[1733651395695,13.16952673,234.23,234.16,13.16952673]
[1733651396700,13.16952673,234.19,234.12,14.56952673]
[1733651396871,13.16952673,234.24,234.17,13.16952673]
[1733651397072,13.16952673,234.25,234.18,13.16952673]
[1733651397400,13.16952673,234.24,234.17,13.16952673]
[1733651397599,13.16952673,234.22,234.16,1.4]
[1733651397896,20.0,234.28,234.13,25.176884]
[1733651398076,24.77446726,234.28,234.13,1.4]
[1733651398276,20.0,234.24,234.13,1.4]
[1733651398480,20.0,234.24,234.07,4.4862]
[1733651398694,13.16952673,234.18,234.11,13.16952673]
[1733651399004,13.16952673,234.19,234.12,13.16952673]
[1733651399700,13.16952673,234.2,234.13,13.16952673]
[1733651400310,13.16952673,234.23,234.16,13.16952673]
[1733651400802,33.16952673,234.24,234.17,13.16952673]
[1733651401001,13.16952673,234.23,234.16,13.16952673]
[1733651401387,10.6712,234.28,234.19,13.16952673]
[1733651401388,13.16952673,234.26,234.19,13.16952673]
[1733651401587,13.16952673,234.26,234.2,3.0179]
[1733651402093,13.16952673,234.27,234.2,16.18742673]
[1733651402293,13.16952673,234.29,234.22,13.16952673]
[1733651402606,13.16952673,234.31,234.24,13.16952673]
[1733651402811,13.16952673,234.32,234.25,13.16952673]
[1733651403015,13.16952673,234.31,234.24,13.16952673]
[1733651403399,13.16952673,234.32,234.25,13.16952673]
[1733651403583,13.16952673,234.34,234.28,13.16952673]
[1733651403783,13.16952673,234.36,234.3,13.16952673]
[1733651404210,13.16952673,234.35,234.29,13.16952673]
[1733651404505,13.16952673,234.38,234.31,13.16952673]
[1733651405035,13.16952673,234.38,234.32,13.16952673]
[1733651405718,13.16952673,234.35,234.31,6.1391]
[1733651405920,13.16952673,234.32,234.26,7.5391]
[1733651406079,5.59339656,234.41,234.26,7.5391]
[1733651406080,13.16952673,234.3,234.26,7.5391]
[1733651406285,13.16952673,234.31,234.26,7.5391]
[1733651406485,13.16952673,234.29,234.26,6.1391]
[1733651406910,13.16952673,234.27,234.2,9.157]
[1733651407084,13.16952673,234.21,234.2,9.157]
[1733651407289,13.16952673,234.27,234.2,22.32652673]
[1733651407515,4.34113393,234.39,234.21,1.4]
[1733651407785,10.6637,234.44,234.25,1.4]
[1733651408098,16.25709656,234.44,234.26,1.4]
[1733651408503,20.99385291,234.34,234.27,20.99385291]
[1733651408710,20.99385291,234.34,234.27,22.39385291]
[1733651408914,16.25709656,234.44,234.26,20.99385291]
[1733651408915,20.99385291,234.33,234.26,20.99385291]
[1733651409118,20.99385291,234.33,234.2,19.157]
[1733651409119,20.99385291,234.31,234.24,20.99385291]
[1733651409420,20.99385291,234.31,234.25,23.776884]
[1733651409926,20.99385291,234.3,234.24,20.99385291]
[1733651410088,20.99385291,234.32,234.25,20.99385291]
[1733651410291,20.99385291,234.34,234.27,20.99385291]
[1733651410523,20.0,234.36,234.21,1.4]
[1733651410696,20.0,234.36,234.26,1.4]
[1733651411308,20.99385291,234.29,234.26,1.4]
[1733651411510,20.99385291,234.27,234.21,20.99385291]
[1733651411732,20.99385291,234.24,234.2,10.557]
[1733651411904,20.99385291,234.23,234.2,9.157]
[1733651412583,51.66145291,234.36,234.2,9.157]
[1733651412584,20.99385291,234.21,234.2,3.0179]
[1733651413026,20.99385291,234.21,234.16,1.4]
[1733651413201,20.99385291,234.19,234.16,1.4]
[1733651413815,20.99385291,234.19,234.17,23.776884]
[1733651414014,20.99385291,234.21,234.17,23.776884]
[1733651414226,20.99385291,234.22,234.17,23.776884]
[1733651414526,10.6722,234.26,234.17,23.776884]
[1733651414527,20.99385291,234.23,234.17,23.776884]
[1733651414722,10.6722,234.26,234.21,23.776884]
[1733651415125,20.99385291,234.22,234.21,23.776884]
[1733651416937,10.6722,234.26,234.21,23.776884]
[1733651416938,20.99385291,234.24,234.21,23.776884]
[1733651418117,20.99385291,234.23,234.21,23.776884]
[1733651418434,20.99385291,234.22,234.21,23.776884]
[1733651422707,20.99385291,234.23,234.21,23.776884]
[1733651423438,20.99385291,234.24,234.21,23.776884]
[1733651424537,4.34113393,234.35,234.21,23.776884]
[1733651424538,20.99385291,234.27,234.21,25.176884]
[1733651424736,20.99385291,234.29,234.23,23.776884]
[1733651424909,20.99385291,234.28,234.23,25.176884]
[1733651425104,20.99385291,234.31,234.24,20.99385291]
[1733651425321,10.6672,234.37,234.25,30.079684]
[1733651425928,20.99385291,234.36,234.3,20.99385291]
[1733651426139,20.99385291,234.37,234.31,23.776884]
[1733651426441,3.24,234.44,234.34,20.99385291]
[1733651426612,20.99385291,234.41,234.34,22.39385291]
[1733651426811,20.99385291,234.41,234.33,23.776884]
[1733651426812,20.99385291,234.4,234.33,44.77073691]
[1733651427435,20.99385291,234.41,234.34,20.99385291]
[1733651428135,20.99385291,234.43,234.37,30.079684]
[1733651428448,20.99385291,234.44,234.38,20.99385291]
[1733651428825,20.99385291,234.45,234.38,20.99385291]
[1733651429229,20.99385291,234.44,234.37,27.29665291]
[1733651429512,20.99385291,234.45,234.38,20.99385291]
[1733651429746,20.99385291,234.45,234.31,5.0]
[1733651429747,20.99385291,234.39,234.3,1.4]
[1733651430040,20.99385291,234.35,234.31,1.4]
[1733651430247,20.99385291,234.35,234.29,1.4]
[1733651430544,20.99385291,234.36,234.3,1.4]
[1733651430741,20.99385291,234.36,234.31,1.4]
[1733651430910,20.99385291,234.38,234.31,1.4]
[1733651431355,20.99385291,234.37,234.3,22.39385291]
[1733651431530,20.99385291,234.37,234.31,1.4]
[1733651431730,20.99385291,234.32,234.24,1.4]
[1733651432048,20.99385291,234.35,234.27,20.99385291]
[1733651432519,20.99385291,234.37,234.29,20.99385291]
[1733651433235,20.99385291,234.35,234.29,1.4]
[1733651433612,20.99385291,234.36,234.29,1.4]
[1733651434039,20.99385291,234.34,234.29,1.4]
[1733651434345,20.99385291,234.31,234.27,1.4]
[1733651434543,20.99385291,234.3,234.25,1.4]
[1733651434744,20.99385291,234.26,234.23,10.9861]
[1733651435133,20.99385291,234.26,234.23,9.5861]
[1733651435518,20.99385291,234.25,234.23,9.5861]
[1733651436724,20.99385291,234.29,234.23,9.5861]
[1733651437230,20.99385291,234.3,234.23,9.5861]
[1733651437621,20.99385291,234.32,234.24,20.99385291]
[1733651437819,20.99385291,234.35,234.28,22.39385291]
[1733651438026,20.99385291,234.33,234.28,1.4]
[1733651438242,20.99385291,234.32,234.28,1.4]
[1733651438428,20.99385291,234.29,234.2,201.4]
[1733651438629,20.99385291,234.28,234.2,222.39385291]
[1733651439021,20.99385291,234.26,234.2,201.4]
[1733651439223,20.99385291,234.22,234.2,200.0]
[1733651439645,10.99385291,234.22,234.2,200.0]
[1733651439830,20.99385291,234.23,234.2,200.0]
[1733651440238,20.99385291,234.25,234.2,200.0]
[1733651440538,20.99385291,234.26,234.2,200.0]
[1733651440947,20.99385291,234.25,234.2,200.0]
[1733651441754,20.99385291,234.24,234.2,200.0]
[1733651442048,20.99385291,234.25,234.2,201.4]
[1733651442951,20.99385291,234.21,234.2,200.0]
[1733651444055,55.44483691,234.21,234.2,197.252]
[1733651444425,55.44483691,234.21,234.2,194.6533]
[1733651444621,60.10952639,234.21,234.2,178.9841]
[1733651444955,65.84375628,234.21,234.2,157.5543]
[1733651445326,65.84375628,234.21,234.08,3.7192]
[1733651445327,20.0,234.17,234.08,3.7192]
[1733651445650,4.66468948,234.2,234.08,3.7192]
[1733651445651,20.99385291,234.09,234.08,3.7192]
[1733651446760,20.99385291,234.1,234.03,28.65555291]
[1733651447161,20.99385291,234.12,234.04,20.99385291]
[1733651447355,20.99385291,234.15,234.07,22.39385291]
[1733651447663,20.99385291,234.17,234.1,20.99385291]
[1733651447968,10.6744,234.21,234.13,3.7192]
[1733651447969,20.99385291,234.19,234.13,3.7192]
[1733651448153,20.99385291,234.18,234.13,3.7192]
[1733651448974,4.66468948,234.26,234.13,3.7192]
[1733651448975,20.99385291,234.19,234.13,3.7192]
[1733651449564,20.99385291,234.18,234.13,5.1192]
[1733651450958,20.99385291,234.19,234.13,5.1192]
[1733651451774,20.99385291,234.18,234.13,5.1192]
[1733651452073,20.99385291,234.16,234.13,5.1192]
[1733651452277,10.6732,234.23,234.13,5.1192]
[1733651452278,20.99385291,234.15,234.13,5.1192]
[1733651452562,20.99385291,234.14,234.13,3.7192]
[1733651452768,20.99385291,234.15,234.13,3.7192]
[1733651453142,20.99385291,234.17,234.13,3.7192]
[1733651453346,20.99385291,234.19,234.13,5.1192]
[1733651453985,20.99385291,234.18,234.13,5.1192]
[1733651455284,20.99385291,234.15,234.13,5.1192]
[1733651455752,20.99385291,234.16,234.13,3.7192]
[1733651456082,20.99385291,234.14,234.13,3.7192]
[1733651456275,20.99385291,234.15,234.13,3.7192]
[1733651456756,20.99385291,234.16,234.13,3.7192]
[1733651458374,20.99385291,234.18,234.13,3.7192]
[1733651458674,20.99385291,234.19,234.13,3.7192]
[1733651459194,20.99385291,234.19,234.14,6.3969]
[1733651461190,20.99385291,234.18,234.14,7.7969]
[1733651461569,20.99385291,234.19,234.14,7.7969]
[1733651461768,20.99385291,234.18,234.14,7.7969]
[1733651461992,20.99385291,234.16,234.14,7.7969]
[1733651462185,10.6745,234.21,234.14,7.7969]
[1733651462186,20.99385291,234.19,234.14,7.7969]
[1733651463086,20.99385291,234.18,234.14,7.7969]
[1733651463389,20.99385291,234.16,234.14,7.7969]
[1733651464103,20.99385291,234.18,234.14,7.7969]
[1733651464276,20.99385291,234.21,234.14,28.79075291]
[1733651464600,20.99385291,234.21,234.15,1.4]
[1733651464892,20.99385291,234.2,234.15,1.4]
[1733651465302,20.99385291,234.19,234.14,7.7969]
[1733651465588,10.6723,234.25,234.15,1.4]
[1733651465589,20.99385291,234.2,234.15,1.4]
[1733651465773,20.99385291,234.2,234.14,7.7969]
[1733651466168,20.99385291,234.19,234.14,7.7969]
[1733651466377,20.99385291,234.18,234.14,7.7969]
[1733651468279,20.99385291,234.15,234.13,3.7192]
[1733651468484,20.99385291,234.14,234.13,3.7192]
[1733651468799,20.99385291,234.14,234.09,7.5547]
[1733651469019,20.99385291,234.13,234.09,7.5547]
[1733651470019,20.99385291,234.14,234.09,7.5547]
[1733651470527,20.99385291,234.13,234.09,7.5547]
[1733651470708,20.99385291,234.16,234.09,28.54855291]
[1733651471514,32.0211,234.22,234.09,28.54855291]
[1733651471515,20.99385291,234.15,234.09,7.5547]
[1733651472425,20.99385291,234.12,234.09,7.5547]
[1733651472723,20.99385291,234.14,234.09,7.5547]
[1733651473218,10.6751,234.19,234.09,7.5547]
[1733651473219,20.99385291,234.1,234.09,6.1547]
[1733651473388,20.99385291,234.1,234.08,3.5192]
[1733651473591,20.99385291,234.09,234.08,3.5192]
[1733651475221,20.99385291,234.09,234.04,6.1547]